bitfinex-derivatives/quotes_ETHF0:USTF0_20240923
["timestamp","ask_amount","ask_price","bid_price","bid_amount"]
[1727075300211,5.7478,2649.1,2648.3,0.3596]
[1727075300520,5.7478,2649.1,2648.7,0.37751]
[1727075301217,5.7478,2649.1,2648.7,0.37752]
[1727075301518,5.7478,2649.1,2648.1,3.2078]
[1727075301519,5.7478,2648.8,2648.1,3.2078]
[1727075301816,5.7478,2648.8,2648.1,3.5854]
[1727075301817,2.54,2648.4,2648.1,3.5854]
[1727075302006,2.54,2648.7,2648.1,3.2078]
[1727075302211,2.54,2648.7,2648.2,0.37758]
[1727075302609,2.54,2648.7,2648.1,3.5854]
[1727075302906,2.54,2648.7,2648.1,3.2078]
[1727075302907,5.7478,2648.7,2648.1,3.2078]
[1727075303106,0.37754,2648.6,2648.1,3.2078]
[1727075303622,0.37756,2648.5,2648.1,3.2078]
[1727075303818,2.54,2648.4,2648.1,3.2078]
[1727075304916,2.54,2648.4,2648.1,3.5854]
[1727075305117,5.7478,2648.7,2648.2,0.37758]
[1727075305340,2.91758,2648.3,2647.8,3.2078]
[1727075305617,5.7478,2648.3,2647.8,3.2078]
[1727075306525,5.7478,2648.3,2647.8,3.58545]
[1727075307023,0.396,2648.5,2648.1,0.3776]
[1727075307220,6.1253,2648.9,2648.3,0.37757]
[1727075307421,5.7478,2648.9,2647.9,0.3751]
[1727075307622,6.1253,2648.9,2648.3,0.37757]
[1727075307825,5.7478,2648.9,2647.9,0.3751]
[1727075308422,3.94409923,2649.0,2648.1,3.2078]
[1727075308624,3.2078,2649.2,2648.2,0.94398]
[1727075308925,2.54,2649.3,2649.1,0.37746]
[1727075309220,3.2078,2649.2,2648.8,0.3775]
[1727075309726,3.2078,2649.2,2648.9,40.8]
[1727075310116,2.91744,2649.3,2648.9,40.8]
[1727075310825,2.54,2649.3,2648.9,41.17748]
[1727075311026,2.54,2649.3,2649.1,0.37746]
[1727075311213,3.2078,2649.5,2648.9,40.8]
[1727075311410,2.54,2649.6,2649.3,0.37743]
[1727075311928,2.54,2649.6,2649.0,0.3838]
[1727075312222,2.54,2649.6,2649.3,0.37742]
[1727075312618,2.54,2649.6,2649.2,0.37744]
[1727075312821,2.54,2649.6,2649.5,0.37741]
[1727075313620,3.2078,2649.8,2649.6,0.37738]
[1727075313827,3.2078,2649.8,2649.7,0.37738]
[1727075314219,5.7478,2650.2,2649.7,3.7736]
[1727075314428,2.54,2650.2,2649.9,0.37734]
[1727075314819,2.54,2650.2,2649.7,0.3614]
[1727075315219,2.54,2650.2,2649.9,0.37735]
[1727075315615,3.2078,2650.5,2649.7,0.3614]
[1727075315821,2.54,2650.7,2649.7,0.3614]
[1727075316218,3.2078,2650.8,2649.9,3.2078]
[1727075316515,2.54,2650.7,2650.0,0.3848]
[1727075316824,2.54,2650.7,2650.3,0.37728]
[1727075317023,3.58502,2650.8,2650.0,0.3848]
[1727075317024,2.54,2650.4,2650.0,0.3848]
[1727075317230,2.54,2650.4,2650.3,0.37729]
[1727075317724,2.54,2650.4,2650.0,0.3848]
[1727075317930,2.54,2650.4,2650.0,0.76213]
[1727075318422,0.37729,2650.3,2650.0,0.3848]
[1727075318624,2.54,2650.1,2649.9,3.2078]
[1727075319923,2.54,2650.1,2649.9,3.58515]
[1727075320129,5.7478,2650.5,2650.2,0.37729]
[1727075320624,5.7478,2650.5,2650.1,0.37732]
[1727075320929,5.7478,2650.5,2650.0,0.37733]
[1727075321314,5.7478,2650.5,2649.9,0.37734]
[1727075321518,2.54,2650.1,2649.9,0.37735]
[1727075322431,3.2078,2650.5,2650.2,0.3773]
[1727075323230,4.32133923,2650.7,2650.2,0.3773]
[1727075323425,0.37724,2650.7,2650.1,0.37731]
[1727075323730,0.37724,2650.7,2650.2,0.37731]
[1727075324430,2.91723,2650.8,2650.3,0.37729]
[1727075324628,2.54,2650.8,2649.9,3.2078]
[1727075324830,3.2078,2651.0,2650.3,3.2078]
[1727075325129,2.54,2651.1,2650.4,1.3063699]
[1727075325338,2.54,2651.1,2650.8,0.37721]
[1727075325531,2.54,2651.1,2650.9,0.3772]
[1727075325730,2.54,2651.1,2650.8,0.37721]
[1727075326622,2.54,2651.1,2650.6,0.37724]
[1727075326818,2.54,2650.8,2650.6,0.37724]
[1727075327023,2.54,2650.8,2650.4,0.7703]
[1727075328019,2.54,2650.8,2650.4,1.14758]
[1727075328231,2.54,2650.5,2650.4,0.7703]
[1727075328834,2.54,2650.5,2650.3,3.2078]
[1727075329234,4.15009,2650.4,2649.9,0.7745]
[1727075329428,2.54,2650.2,2649.9,0.7745]
[1727075330031,2.54,2650.2,2649.9,1.15184]
[1727075330233,2.54,2650.2,2649.9,0.7745]
[1727075330430,2.54,2650.2,2650.0,0.37733]
[1727075331129,2.54,2650.2,2649.9,1.15184]
[1727075331934,2.54,2650.2,2649.9,0.7745]
[1727075332131,2.54,2650.2,2649.9,1.15185]
[1727075332327,2.54,2650.2,2649.9,0.7745]
[1727075332931,6.12506,2650.5,2649.9,4.92545]
[1727075333127,5.7478,2650.5,2649.9,1.15185]
[1727075333330,5.7478,2650.5,2650.0,0.37733]
[1727075333627,2.54,2650.5,2650.0,0.37733]
[1727075333829,0.3867,2650.7,2650.2,0.3773]
[1727075334338,0.3867,2650.7,2649.9,3.9823]
[1727075334339,0.3867,2650.7,2650.3,0.37728]
[1727075334534,0.76394,2650.7,2650.1,0.37731]
[1727075335126,0.37725,2650.6,2650.0,0.37733]
[1727075335537,0.76394,2650.7,2650.1,0.37732]
[1727075335737,0.3867,2650.7,2650.2,0.3773]
[1727075337339,0.76394,2650.7,2650.2,0.3773]
[1727075337632,2.54,2650.5,2650.2,0.3773]
[1727075337940,0.76394,2650.7,2650.2,0.3773]
[1727075338239,0.3867,2650.7,2650.3,0.37729]
[1727075338630,0.3867,2650.7,2650.2,0.3773]
[1727075340041,0.76394,2650.7,2650.2,0.3773]
[1727075340238,0.76394,2650.7,2649.9,0.7745]
[1727075340239,0.3867,2650.7,2650.0,3.2078]
[1727075340636,0.3867,2650.7,2650.4,0.37727]
[1727075341834,0.3867,2650.7,2650.5,0.37726]
[1727075342041,3.2078,2650.8,2650.6,0.3891]
[1727075342243,3.2078,2650.8,2650.7,0.37723]
[1727075342440,2.06,2650.9,2650.8,0.37722]
[1727075344352,6.85159923,2651.2,2650.9,0.37721]
[1727075344642,2.9075,2651.2,2650.8,0.37721]
[1727075345145,2.9075,2651.2,2650.9,0.3772]
[1727075345338,2.54,2651.2,2651.0,0.37719]
[1727075345745,2.54,2651.2,2650.9,0.3772]
[1727075346545,2.54,2651.2,2650.7,0.76112]
[1727075346747,2.54,2651.2,2650.8,40.8]
[1727075347143,2.54,2651.2,2650.8,41.17722]
[1727075347443,2.54,2650.9,2650.6,3.5969]
[1727075347645,2.54,2650.9,2650.6,3.2078]
[1727075347857,0.3858,2650.8,2650.6,3.2078]
[1727075351153,0.76302,2650.8,2650.6,3.2078]
[1727075351455,0.7506,2650.8,2650.6,3.2078]
[1727075352058,0.3858,2650.8,2650.6,3.2078]
[1727075352757,0.3858,2650.8,2650.4,3.58507]
[1727075352957,0.3858,2650.8,2650.4,3.2078]
[1727075353151,0.3858,2650.8,2650.5,0.37726]
[1727075354062,0.3858,2650.8,2650.4,3.58507]
[1727075356352,0.3858,2650.8,2650.4,4.56475928]
[1727075356759,0.3858,2650.8,2650.5,0.37726]
[1727075357257,0.3858,2650.8,2650.5,1.35694928]
[1727075357759,3.2078,2651.1,2650.5,0.97968928]
[1727075357962,3.58498,2651.1,2650.6,0.37725]
[1727075358157,3.58498,2651.1,2650.5,0.97968928]
[1727075358362,4.17826818,2651.1,2650.7,0.37723]
[1727075358869,4.17826818,2651.1,2650.8,0.7627]
[1727075359161,4.55544818,2651.1,2650.8,0.7627]
[1727075359363,4.17826818,2651.1,2650.8,0.7627]
[1727075359757,4.55545818,2651.1,2650.8,0.7627]
[1727075360655,4.55545818,2651.1,2650.7,0.97968928]
[1727075360656,2.91721,2650.9,2650.7,0.97968928]
[1727075360855,2.91721,2650.9,2650.6,0.97968928]
[1727075360856,2.54,2650.9,2650.6,0.97968928]
[1727075361061,2.91721,2650.9,2650.6,0.97968928]
[1727075361662,0.37722,2650.8,2650.6,0.97968928]
[1727075361967,0.37723,2650.7,2650.6,0.97968928]
[1727075362261,0.3648,2650.7,2650.5,0.97968928]
[1727075363054,0.3648,2650.7,2650.5,1.35694928]
[1727075363265,0.3648,2650.7,2650.5,0.97968928]
[1727075363663,3.2078,2650.8,2650.5,1.35694928]
[1727075363868,3.2078,2650.8,2650.6,0.97968928]
[1727075364275,3.2078,2650.8,2650.5,1.35694928]
[1727075364674,3.2078,2650.8,2650.5,0.97968928]
[1727075364867,3.58502,2650.8,2650.6,0.97968928]
[1727075365163,3.2078,2650.8,2650.5,0.97968928]
[1727075365763,2.54,2650.6,2650.4,0.97968928]
[1727075365972,8.45664826,2650.5,2650.3,0.3873]
[1727075366277,3.04336969,2650.4,2650.3,0.3873]
[1727075366571,6.81616969,2650.4,2650.3,0.3873]
[1727075367166,7.19344969,2650.4,2650.3,0.3873]
[1727075368378,0.37731,2650.2,2650.0,1.37678928]
[1727075368567,0.37731,2650.2,2650.0,0.3971]
[1727075368568,2.06,2650.1,2650.0,0.3971]
[1727075369467,2.43732,2650.1,2650.0,0.3971]
[1727075369979,2.06,2650.1,2650.0,0.3971]
[1727075371666,2.43732,2650.1,2650.0,0.3971]
[1727075372365,2.43732,2650.1,2649.8,0.97968928]
[1727075372366,0.37735,2649.9,2649.8,0.97968928]
[1727075372568,0.37739,2649.6,2649.5,0.97968928]
[1727075372772,2.06,2649.6,2649.5,41.77968928]
[1727075372972,2.06,2649.6,2649.5,42.35101551]
[1727075373376,2.06,2649.6,2649.5,41.77968928]
[1727075373575,2.06,2649.6,2649.5,40.8]
[1727075373773,2.06,2649.6,2649.4,0.97968928]
[1727075374085,2.4374,2649.6,2649.3,0.97968928]
[1727075374382,2.06,2649.6,2649.2,0.3953]
[1727075374586,2.06,2649.3,2649.2,0.3953]
[1727075376477,2.06,2649.5,2649.3,0.37743]
[1727075376672,2.06,2649.5,2649.4,0.3802]
[1727075379782,5.2678,2649.7,2649.4,0.3802]
[1727075380075,2.06,2649.9,2649.7,0.37737]
[1727075380285,2.06,2649.9,2649.8,0.3883]
[1727075380475,2.06,2649.9,2649.8,41.1883]
[1727075382672,3.2078,2650.2,2649.8,41.1883]
[1727075382882,3.2078,2650.2,2650.0,0.37733]
[1727075383778,3.2078,2650.2,2649.9,0.3837]
[1727075383779,3.2078,2650.2,2649.9,0.76104]
[1727075384083,2.06,2650.0,2649.8,41.1883]
[1727075384280,2.06,2650.0,2649.4,1.97384313]
[1727075384281,3.2078,2649.9,2649.4,0.3837]
[1727075384482,2.06,2649.5,2649.4,0.3837]
[1727075384786,2.06,2649.5,2649.3,3.5707]
[1727075385277,0.37744,2649.3,2649.1,41.1837]
[1727075385478,2.06,2649.2,2649.1,41.1837]
[1727075388481,5.2678,2649.4,2649.1,41.1837]
[1727075388875,5.2678,2649.4,2649.1,0.3837]
[1727075389183,2.06,2649.4,2649.1,0.3837]
[1727075390786,0.7516,2649.6,2649.1,0.3837]
[1727075390983,2.06,2649.5,2649.1,0.3837]
[1727075391176,2.06,2649.5,2649.2,0.37745]
[1727075391776,2.06,2649.7,2649.4,0.37742]
[1727075391979,3.2078,2649.8,2649.4,0.37742]
[1727075392185,3.2078,2649.8,2649.2,0.3979]
[1727075392489,2.06,2650.1,2649.8,0.37736]
[1727075392788,2.06,2650.1,2649.9,0.7748]
[1727075392980,2.06,2650.0,2649.9,0.7748]
[1727075394677,2.06,2650.0,2649.3,0.97968928]
[1727075394884,2.06,2649.5,2649.4,1.16622]
[1727075395080,2.06,2649.5,2649.4,0.7888]
[1727075397882,2.06,2649.5,2649.1,3.58526]
[1727075398094,2.06,2649.5,2649.2,1.10345]
[1727075398278,2.06,2649.5,2649.2,0.726]
[1727075398279,2.06,2649.3,2649.2,0.726]
[1727075399481,0.37746,2649.1,2649.0,40.8]
[1727075399700,0.37749,2649.0,2648.6,1.72378928]
[1727075399996,2.06,2648.7,2648.6,1.72378928]
[1727075400184,0.37749,2649.0,2648.6,41.5441]
[1727075400486,2.06,2648.7,2648.6,41.92163]
[1727075400988,2.06,2648.7,2648.6,41.5441]
[1727075401390,0.37753,2648.6,2648.4,0.97968928]
[1727075401590,0.37753,2648.6,2648.0,1.97384313]
[1727075401591,2.4491,2648.5,2648.0,0.97968928]
[1727075401891,2.06,2648.2,2648.1,40.8]
[1727075402281,2.06,2648.2,2647.8,0.97968928]
[1727075402282,5.6454,2648.2,2647.8,0.97968928]
[1727075402600,3.58544,2647.9,2647.6,0.3883]
[1727075402898,2.06,2647.8,2647.7,40.8]
[1727075403287,2.06,2647.8,2647.1,0.37773]
[1727075403288,6.21445,2647.8,2647.1,0.37773]
[1727075403487,2.06,2647.4,2647.1,0.74413]
[1727075403788,3.2078,2648.2,2647.2,13.47772783]
[1727075404093,3.2078,2648.2,2647.5,4.19246733]
[1727075404293,3.2078,2648.2,2647.6,1.76716733]
[1727075404592,3.2078,2648.2,2647.7,0.98466733]
[1727075404779,3.2078,2648.2,2647.8,0.3755]
[1727075404978,3.2078,2648.2,2648.0,0.37761]
[1727075405190,2.06,2648.3,2648.2,0.37759]
[1727075405386,2.06,2648.7,2648.0,3.776]
[1727075405591,2.06,2648.7,2648.4,0.37756]
[1727075405791,2.06,2648.7,2648.5,0.75305]
[1727075406092,2.06,2648.7,2648.6,0.3941]
[1727075406295,2.06,2648.7,2648.5,0.3755]
[1727075406495,2.06,2648.7,2648.1,0.3941]
[1727075406496,0.37756,2648.5,2648.1,0.3941]
[1727075406682,2.06,2648.3,2648.1,0.3941]
[1727075406996,2.06,2648.7,2648.1,0.3941]
[1727075407197,2.06,2648.7,2648.1,1.37876733]
[1727075407492,2.06,2648.5,2648.1,1.75636733]
[1727075407884,2.06,2648.3,2648.1,0.3941]
[1727075408290,2.06,2648.3,2647.9,0.3755]
[1727075408498,2.43758,2648.3,2647.9,0.3755]
[1727075409191,2.43758,2648.3,2648.0,40.8]
[1727075409786,2.06,2648.3,2648.0,40.8]
[1727075412293,2.43758,2648.3,2648.0,40.8]
[1727075412901,2.06,2648.1,2648.0,40.8]
[1727075414397,2.06,2648.1,2647.8,0.3877]
[1727075414398,2.43761,2648.1,2647.8,0.3877]
[1727075414593,0.37762,2648.0,2647.6,3.2078]
[1727075414793,2.06,2647.8,2647.6,3.2078]
[1727075416099,2.06,2647.8,2647.5,0.3949]
[1727075416100,4.15446,2647.7,2647.0,0.98466733]
[1727075416409,0.3952,2647.9,2646.9,1.47994867]
[1727075416410,2.06,2647.1,2646.9,0.7641]
[1727075416588,2.06,2647.1,2646.9,1.14187]
[1727075416999,2.06,2647.1,2646.9,0.7641]
[1727075417395,6.9854,2647.0,2646.4,40.8]
[1727075417693,2.06,2647.2,2646.8,0.37778]
[1727075418090,2.06,2647.2,2646.4,40.8]
[1727075418399,5.2678,2647.0,2646.4,40.8]
[1727075418609,3.2078,2647.3,2646.5,0.7343]
[1727075418801,3.2078,2647.3,2647.0,0.37776]
[1727075419101,3.2078,2647.3,2647.1,1.10775]
[1727075419300,2.06,2647.4,2647.1,0.73]
[1727075419496,2.06,2647.4,2647.2,0.37773]
[1727075419702,2.06,2647.6,2647.3,0.37771]
[1727075419886,2.06,2647.6,2647.2,0.37772]
[1727075420087,2.06,2647.6,2647.3,0.37771]
[1727075420706,2.06,2647.6,2647.1,0.73]
[1727075421304,2.06,2647.6,2647.4,0.3777]
[1727075421806,2.06,2647.6,2647.5,0.37769]
[1727075421999,2.06,2647.6,2647.2,40.8]
[1727075422000,2.06,2647.6,2647.4,0.3777]
[1727075422207,2.06,2647.6,2647.5,0.37769]
[1727075422497,2.06,2647.9,2647.5,0.37769]
[1727075422698,2.06,2647.9,2647.6,0.3978]
[1727075422911,2.06,2647.9,2647.7,0.3714]
[1727075423201,5.2678,2648.1,2647.7,0.74905]
[1727075423405,5.2678,2648.1,2647.8,0.37765]
[1727075423599,5.2678,2648.1,2647.8,0.37764]
[1727075423998,2.06,2648.1,2647.7,0.3714]
[1727075424198,2.06,2648.1,2648.0,0.37762]
[1727075424903,2.06,2648.1,2647.9,0.37763]
[1727075425305,2.06,2648.1,2647.8,0.37764]
[1727075425500,2.06,2648.1,2647.7,0.74905]
[1727075425701,2.06,2648.1,2647.8,0.37764]
[1727075426006,2.06,2648.1,2647.9,0.37763]
[1727075427103,2.06,2648.1,2647.7,0.3714]
[1727075427497,2.06,2648.1,2647.8,0.37765]
[1727075427698,5.2678,2647.9,2647.7,0.3714]
[1727075427901,0.3905,2647.8,2647.4,3.2078]
[1727075428097,2.06,2647.7,2647.4,3.2078]
[1727075428302,2.06,2647.7,2647.3,0.3967]
[1727075428504,2.43767,2647.7,2647.3,0.3967]
[1727075428804,2.06,2647.7,2647.3,0.3967]
[1727075429108,2.43766,2647.7,2647.3,0.3967]
[1727075429298,2.06,2647.7,2647.3,0.3967]
[1727075429500,0.3878,2648.0,2647.8,0.37765]
[1727075429702,2.06,2648.1,2647.3,3.6045]
[1727075429906,2.06,2648.1,2647.7,0.37765]
[1727075430102,2.06,2648.1,2647.8,0.3894]
[1727075430296,2.06,2647.9,2647.4,0.3777]
[1727075430499,0.3861,2648.1,2647.4,0.3894]
[1727075430500,2.06,2647.7,2647.4,0.3894]
[1727075430899,2.06,2647.7,2647.4,0.7671]
[1727075431094,2.06,2647.7,2647.4,0.3894]
[1727075431498,2.43767,2647.7,2647.4,0.3894]
[1727075431798,2.06,2647.7,2647.4,0.3894]
[1727075432809,0.3861,2648.1,2647.9,0.37762]
[1727075433014,4.33849923,2648.3,2648.0,0.3774]
[1727075433204,2.06,2648.1,2647.4,0.3894]
[1727075433410,2.06,2647.6,2647.5,0.3774]
[1727075434321,0.3777,2647.5,2647.0,0.37776]
[1727075434514,2.06,2647.2,2646.9,1.12157]
[1727075434710,2.06,2647.2,2647.0,40.8]
[1727075434905,2.4471,2647.4,2647.0,41.17775]
[1727075435117,5.2678,2647.6,2647.0,40.8]
[1727075435308,0.7793,2647.7,2647.0,40.8]
[1727075435509,0.3986,2647.7,2647.1,3.2078]
[1727075435805,0.3986,2647.7,2647.3,0.37771]
[1727075436008,0.3986,2647.7,2647.4,0.3777]
[1727075436207,2.06,2647.8,2647.6,0.37767]
[1727075436514,3.2078,2647.9,2647.6,0.37767]
[1727075437008,2.06,2648.0,2647.8,0.37764]
[1727075437211,2.06,2648.0,2647.7,0.37766]
[1727075437512,7.15189923,2648.4,2647.9,0.37762]
[1727075437705,2.06,2648.3,2648.0,0.37762]
[1727075437903,2.06,2648.3,2648.1,0.3765]
[1727075438307,3.2078,2648.4,2648.1,0.3765]
[1727075439415,3.58538,2648.4,2648.1,0.3765]
[1727075439615,0.37761,2648.1,2647.6,0.3777]
[1727075439820,0.37767,2647.7,2647.3,3.2078]
[1727075440017,3.2078,2648.0,2647.3,3.58551]
[1727075440018,0.37765,2647.8,2647.3,3.58551]
[1727075440312,2.91764,2647.9,2647.2,0.3765]
[1727075440516,0.37765,2647.8,2647.3,0.37771]
[1727075440923,2.91764,2647.9,2647.4,0.3777]
[1727075441106,2.54,2647.9,2647.5,0.37769]
[1727075441610,4.72882,2648.0,2647.5,0.37769]
[1727075441805,4.3512,2648.0,2647.3,0.3924]
[1727075442015,4.3512,2648.0,2647.6,0.37767]
[1727075442218,4.3512,2648.0,2647.3,1.37706733]
[1727075442518,0.37764,2647.9,2647.4,0.98466733]
[1727075442713,0.37764,2647.9,2647.3,1.75477733]
[1727075442910,0.37766,2647.8,2647.3,0.98466733]
[1727075443109,0.37766,2647.8,2647.2,0.75423]
[1727075443110,0.37767,2647.7,2647.2,1.73889733]
[1727075443512,3.58547,2647.7,2647.2,1.73889733]
[1727075443711,0.37766,2647.8,2647.3,0.37772]
[1727075444526,0.37766,2647.8,2647.3,1.36238733]
[1727075444821,0.37766,2647.7,2647.3,1.36238733]
[1727075445018,0.37769,2647.5,2647.2,1.36116733]
[1727075445209,0.74701,2647.4,2647.2,0.3765]
[1727075445611,0.74701,2647.4,2647.2,1.36116733]
[1727075445807,3.5771,2647.4,2647.2,1.36116733]
[1727075446210,0.3693,2647.4,2647.2,1.36116733]
[1727075446820,0.3693,2647.4,2647.2,0.3765]
[1727075447423,0.74701,2647.4,2647.2,1.36116733]
[1727075447611,0.37772,2647.3,2647.2,0.98466733]
[1727075447818,0.77502,2647.3,2647.2,0.98466733]
[1727075448117,0.37773,2647.2,2647.1,0.98466733]
[1727075448315,0.7662,2647.3,2647.1,0.98466733]
[1727075448316,1.14393,2647.3,2647.1,0.98466733]
[1727075450219,0.7662,2647.3,2647.1,0.98466733]
[1727075450426,0.3693,2647.4,2647.2,1.36238733]
[1727075450615,0.3744,2647.6,2647.3,0.77082]
[1727075451120,4.19099434,2648.4,2647.9,0.37763]
[1727075451419,4.19099434,2648.4,2647.5,1.47994867]
[1727075451420,0.743,2648.3,2647.8,0.98721202]
[1727075451719,0.743,2648.3,2647.7,0.98721202]
[1727075451720,3.58541,2648.1,2647.7,0.98721202]
[1727075452320,3.58541,2648.1,2647.7,1.36487202]
[1727075452620,0.37762,2648.0,2647.7,0.98721202]
[1727075452823,3.2078,2648.1,2647.7,0.98721202]
[1727075453123,3.283,2648.3,2647.8,1.36485202]
[1727075453725,3.66059,2648.3,2647.8,1.36485202]
[1727075453923,0.3613,2648.3,2648.1,0.3776]
[1727075454218,3.5822,2648.4,2648.1,0.3776]
[1727075454424,3.5822,2648.4,2648.2,0.3695]
[1727075454726,3.5822,2648.4,2648.2,41.1695]
[1727075454916,3.2078,2648.4,2648.2,41.1695]
[1727075455918,2.9088,2648.6,2648.2,42.15671202]
[1727075456427,3.2078,2648.5,2648.2,42.15671202]
[1727075456619,3.2078,2648.5,2648.3,0.3774]
[1727075457330,3.2078,2648.5,2648.3,1.36461202]
[1727075458133,3.2078,2648.5,2648.3,0.3774]
[1727075458324,5.2678,2648.5,2648.3,0.3774]
[1727075458526,5.2678,2648.5,2648.3,1.36461202]
[1727075458728,5.2678,2648.5,2648.4,0.37756]
[1727075459025,2.06,2648.5,2648.3,1.74218202]
[1727075459523,2.06,2648.7,2648.3,5.51818202]
[1727075459729,2.06,2648.4,2648.3,1.36461202]
[1727075459929,2.06,2648.4,2648.3,0.3774]
[1727075460120,2.06,2648.4,2648.3,40.8]
[1727075460322,0.37758,2648.3,2648.0,0.98721202]
[1727075460525,2.06,2648.1,2648.0,0.98721202]
[1727075460731,2.06,2648.1,2648.0,41.78721202]
[1727075461129,2.06,2648.3,2648.0,42.35824778]
[1727075461324,2.43758,2648.3,2648.0,41.78721202]
[1727075461728,2.43758,2648.3,2648.0,40.8]
[1727075461929,2.06,2648.3,2648.0,40.8]
[1727075462130,2.06,2648.3,2647.9,1.76451202]
[1727075462327,2.06,2648.0,2647.9,1.76465448]
[1727075462525,2.06,2648.0,2647.7,0.98735448]
[1727075462831,2.43765,2647.8,2647.5,0.98735448]
[1727075463036,5.64545,2647.8,2647.4,0.98735448]
[1727075463331,5.64545,2647.8,2647.4,42.16505448]
[1727075463531,5.64545,2647.8,2647.5,0.98735448]
[1727075463532,5.2678,2647.8,2647.5,0.98735448]
[1727075463727,5.64545,2647.8,2647.5,0.98735448]
[1727075464328,5.64545,2647.8,2647.4,41.78735448]
[1727075464541,5.2678,2647.8,2647.5,0.98735448]
[1727075464831,0.98319434,2648.1,2647.7,0.37766]
[1727075464832,2.06,2648.0,2647.7,0.37766]
[1727075465030,3.2078,2648.1,2647.8,0.3838]
[1727075465223,3.2078,2648.1,2647.9,1.36498448]
[1727075465427,3.2078,2648.1,2648.0,0.37762]
[1727075465627,3.2078,2648.1,2648.0,1.36497448]
[1727075466336,3.2078,2648.1,2648.0,3.14455282]
[1727075466742,3.5729,2648.6,2648.3,0.37757]
[1727075467042,3.5729,2648.6,2648.4,0.3967]
[1727075468333,3.2078,2648.6,2648.4,0.3967]
[1727075468641,3.2078,2648.6,2648.4,1.38461825]
[1727075469234,3.2078,2648.6,2648.4,0.3967]
[1727075471034,22.37584,2649.0,2648.5,1.77842577]
[1727075471234,22.37584,2649.0,2648.6,0.98729176]
[1727075471539,22.37584,2649.0,2648.7,40.8]
[1727075473935,22.01054,2649.0,2648.7,40.8]
[1727075474135,22.01054,2649.0,2648.7,41.17751]
[1727075474637,22.01054,2649.0,2648.7,40.8]
[1727075475337,22.01054,2649.0,2648.4,1.78259176]
[1727075475338,0.3775,2648.9,2648.4,1.78259176]
[1727075475535,0.74741,2648.8,2648.4,1.78259176]
[1727075475736,0.37755,2648.5,2648.4,0.3967]
[1727075476134,0.37754,2648.6,2648.4,0.3967]
[1727075476539,0.37754,2648.6,2647.8,0.3925]
[1727075476540,0.37761,2648.1,2647.6,1.48187737]
[1727075476838,0.37761,2648.1,2647.1,0.58718583]
[1727075476839,0.3777,2647.5,2647.1,0.3986]
[1727075477028,3.2078,2647.4,2647.1,0.3986]
[1727075478354,3.2078,2647.4,2647.2,3.7776]
[1727075478534,2.9137,2648.0,2647.3,3.61486013]
[1727075478535,0.37763,2647.9,2647.3,3.61486013]
[1727075478843,0.37764,2647.9,2647.4,2.68421897]
[1727075479045,0.37764,2647.9,2647.3,1.48187737]
[1727075479236,0.3737,2648.0,2647.4,0.37769]
[1727075479431,0.3737,2648.0,2647.3,1.48187737]
[1727075479632,0.3737,2648.0,2647.4,1.20230052]
[1727075479827,0.3737,2648.0,2647.3,1.48187737]
[1727075479828,0.37764,2647.9,2647.3,1.48187737]
[1727075480032,2.9137,2648.0,2647.3,1.48187737]
[1727075480239,0.37768,2647.6,2647.2,1.84127737]
[1727075480441,3.2078,2647.5,2647.1,1.88047737]
[1727075480633,0.37772,2647.3,2647.1,0.3986]
[1727075482244,0.75471,2647.4,2647.1,0.3986]
[1727075482639,0.377,2647.4,2647.1,0.3986]
[1727075482947,0.37771,2647.4,2647.1,0.3986]
[1727075483245,3.5855,2647.5,2647.1,0.3986]
[1727075485641,0.3777,2647.5,2647.1,0.3986]
[1727075486951,3.2078,2647.3,2647.1,0.3986]
[1727075487152,0.37773,2647.2,2647.1,0.3986]
[1727075487337,0.37773,2647.2,2646.2,0.3832]
[1727075487338,0.37778,2646.9,2646.2,0.3832]
[1727075487543,3.2078,2646.8,2646.2,0.3832]
[1727075487743,3.2078,2646.8,2646.4,0.37784]
[1727075487951,3.58559,2646.8,2646.3,0.37786]
[1727075488347,3.58559,2646.8,2646.2,0.3832]
[1727075488348,3.2078,2646.8,2646.2,0.3832]
[1727075488646,1.72285,2647.2,2646.2,0.3832]
[1727075488647,3.2078,2647.1,2646.2,0.3832]
[1727075488850,3.58555,2647.1,2646.6,0.37781]
[1727075489245,3.2078,2647.1,2646.7,0.3778]
[1727075489545,3.2078,2647.1,2646.8,0.76098]
[1727075489753,3.2078,2647.1,2646.9,0.3624]
[1727075489955,3.2078,2647.1,2646.8,0.3832]
[1727075490270,3.58556,2647.1,2646.8,0.3832]
[1727075490452,3.2078,2647.1,2646.8,0.3832]
[1727075491248,3.58555,2647.1,2646.8,0.3832]
[1727075491449,3.2078,2647.1,2646.8,0.3832]
[1727075491646,3.2078,2647.1,2646.8,0.76099]
[1727075491857,3.2078,2647.1,2646.9,0.37778]
[1727075492341,5.7478,2647.1,2646.4,5.05207737]
[1727075492540,0.7675,2647.0,2646.5,0.3892]
[1727075492742,0.37778,2646.9,2646.5,0.3892]
[1727075493353,0.7675,2647.0,2646.5,0.3892]
[1727075493542,1.14527,2647.0,2646.5,0.76703]
[1727075494741,0.7675,2647.0,2646.5,0.3892]
[1727075494946,1.14526,2647.0,2646.5,0.76703]